[Event "TUR-ch Veterans 2019"]
[Site "Belek"]
[Date "2019.01.24"]
[Round "5.2"]
[White "Yasin, Hur"]
[Black "Uzuner, Tufan Can"]
[Result "1-0"]
[ECO "B13"]
[WhiteElo "2004"]
[BlackElo "1889"]
[Annotator "NA"]
[PlyCount "60"]
[EventDate "2019.01.20"]
[EventType "swiss"]
[EventCountry "TUR"]
[SourceTitle "playchess.com"]
[Source "ChessBase"]
[SourceQuality "1"]
[TimeControl "5400+30"]

1. e4 {[%emt 0:00:30]} c6 {[%emt 0:00:00]} 2. d4 {[%emt 0:00:00]} d5 {[%emt 0:00:00]} 3. exd5 {[%emt 0:00:00]} cxd5 {[%emt 0:00:30]} 4. Nf3 {[%emt 0:00:30]} Nf6 {[%emt 0:00:30]} 5. Ne5 {[%emt 0:00:30]} a6 {[%emt 0:09:30]} 6. Bd3 {[%emt 0:01:30]} e6 {[%emt 0:04:30]} 7. c3 {[%emt 0:00:30]} Be7 {[%emt 0:00:30]} 8. Nd2 {[%emt 0:00:30]} Bd7 {[%emt 0:00:30]} 9. O-O {[%emt 0:00:30]} O-O {[%emt 0:00:30]} 10. f4 {[%emt 0:00:30]} Bb5 {[%emt 0:05:30]} 11. Bxb5 {[%emt 0:00:30]} axb5 {[%emt 0:01:30]} 12. f5 {[%emt 0:00:30]} exf5 {[%emt 0:02:30]} 13. Rxf5 {[%emt 0:00:30]} b4 {[%emt 0:10:30]} 14. c4 {[%emt 0:01:30]} dxc4 {[%emt 0:13:30]} 15. Ndxc4 {[%emt 0:00:30]} Nc6 {[%emt 0:05:30]} 16. Be3 {[%emt 0:00:30]} Nd5 {[%emt 0:04:30]} 17. Bf2 {[%emt 0:01:30]} Bf6 $11 {[%emt 0:11:30]} 18. Ng4 {[%emt 0:01:30]} Ra6 {[%emt 0:03:30]} 19. Nxf6+ {[%emt 0:29:30]} Nxf6 {[%emt 0:00:30]} 20. Rb5 {[%emt 0:00:30]} Qd7 {[%emt 0:01:30]} 21. Nb6 {[%emt 0:01:30]} Qe7 {[%emt 0:09:20]} 22. d5 {[%emt 0:01:30]} Na7 {[%emt 0:06:25]} 23. d6 {[%emt 0:08:30]} Qe4 {[%emt 0:00:16]} 24. Rg5 {[%emt 0:00:30]} Nc6 {[%emt 0:04:09]} 25. Nd5 {[%emt 0:07:30]} Nxd5 {[%emt 0:00:37]} 26. Rxd5 {[%emt 0:01:30]} Rd8 {[%emt 0:00:59]} 27. d7 {[%emt 0:00:30]} h6 {[%emt 0:04:07]} 28. Qd2 {[%emt 0:03:30]} Kh7 {[%emt 0:00:07]} 29. Re1 {[%emt 0:00:30]} Qg6 {[%emt 0:00:30]} 30. b3 {[%emt 0:00:30]} f6 {[%emt 0:01:30]} 1-0

[Event "TUR-ch Veterans 2019"]
[Site "Belek"]
[Date "2019.01.24"]
[Round "5.3"]
[White "Marthedal, Anton Mehmet Yildiz"]
[Black "Ozates, Veysel"]
[Result "0-1"]
[ECO "B12"]
[WhiteElo "1885"]
[BlackElo "1550"]
[Annotator "NA"]
[PlyCount "64"]
[EventDate "2019.01.20"]
[EventType "swiss"]
[EventCountry "TUR"]
[SourceTitle "playchess.com"]
[Source "ChessBase"]
[SourceQuality "1"]
[TimeControl "5400+30"]

1. e4 {[%emt 0:00:30]} c6 {[%emt 0:00:30]} 2. d4 {[%emt 0:00:30]} d5 {[%emt 0:00:00]} 3. e5 {[%emt 0:00:30]} Bf5 {[%emt 0:00:00]} 4. g4 {[%emt 0:00:30]} Be4 {[%emt 0:01:30]} 5. f3 {[%emt 0:00:30]} Bg6 {[%emt 0:01:30]} 6. h4 {[%emt 0:00:00]} h6 {[%emt 0:00:30] B12: Caro-Kann: Advance Variation} (6... h5 7. e6 Qd6 8. exf7+ Bxf7 9. Be3 hxg4 10. fxg4 Nf6 11. Nc3 Qe6 12. Kd2 Nxg4 13. Bg5 Nf2 14. Qf3 Nxh1 15. Qxh1 Qd6 16. Bh3 e6 {0-1 (30) Vallejo Pons,F (2717)-So,W (2810) Tbilisi 2017}) 7. Nh3 {[%emt 0:00:00]} e6 {[%emt 0:00:30]} 8. Nf4 {[%emt 0:02:30]} Bh7 {[%emt 0:00:30]} 9. Kf2 $146 {[%emt 0:01:30]} ({Predecessor:} 9. Be3 Qb6 10. b3 Nd7 11. Nd2 Nxe5 12. Kf2 Nd7 13. c4 Qc7 {0-1 (30) Bicek,R (2123)-Plischki,S (2413) Prague 2018}) 9... c5 {[%emt 0:05:30]} 10. c3 {[%emt 0:00:30]} Qb6 {[%emt 0:00:30]} 11. Kg3 {[%emt 0:04:30]} Ne7 {[%emt 0:02:30]} 12. h5 {[%emt 0:00:30]} (12. Bd3 $1 $11 {keeps the balance.}) 12... Nd7 {[%emt 0:01:30]} 13. Qa4 {[%emt 0:03:30]} Nc6 {[%emt 0:00:30]} 14. Bb5 {[%emt 0:01:30]} a6 {[%emt 0:02:30]} 15. Bxc6 {[%emt 0:03:30]} bxc6 {[%emt 0:03:30]} 16. Nd2 {[%emt 0:09:30]} Be7 {[%emt 0:00:00]} 17. Nf1 {[%emt 0:02:30]} O-O {[%emt 0:00:00]} 18. Nh2 {[%emt 0:08:30]} Qc7 {[%emt 0:06:30]} 19. Nh3 {[%emt 0:02:30]} (19. Ne2 {keeps fighting.}) 19... Rfb8 {[%emt 0:05:30]} 20. g5 {[%emt 0:02:30]} (20. f4 {is a better defense.}) 20... hxg5 $19 {[%emt 0:00:30]} 21. h6 {[%emt 0:04:30]} gxh6 {[%emt 0:04:30]} 22. Ng4 {[%emt 0:00:30]} h5 {[%emt 0:03:30]} 23. Nh6+ {[%emt 0:10:30]} Kg7 {[%emt 0:01:30]} 24. Nxg5 {[%emt 0:00:30]} Bxg5 {[%emt 0:02:30]} 25. Bxg5 {[%emt 0:00:30]} Bg6 {[%emt 0:01:30]} 26. Qd1 {[%emt 0:00:30]} Rh8 {[%emt 0:09:30]} 27. Qd2 {[%emt 0:01:30]} f6 {[%emt 0:00:30]} 28. Rxh5 {[%emt 0:03:30]} Bxh5 {[%emt 0:03:30]} 29. Bxf6+ {[%emt 0:00:30]} Nxf6 {[%emt 0:03:30]} 30. Qg5+ {[%emt 0:03:30]} Kh7 {[%emt 0:00:30]} 31. Ng4 {[%emt 0:00:30]} Nxg4 {[%emt 0:04:30]} 32. fxg4 {[%emt 0:02:30]} Qg7 {[%emt 0:00:30]} 0-1

[Event "TUR-ch Veterans 2019"]
[Site "Belek"]
[Date "2019.01.24"]
[Round "5.4"]
[White "Cetinkaya, Vedat Ali"]
[Black "Guner, Bulent"]
[Result "1-0"]
[ECO "D11"]
[WhiteElo "2056"]
[BlackElo "1987"]
[Annotator "NA"]
[PlyCount "101"]
[EventDate "2019.01.20"]
[EventType "swiss"]
[EventCountry "TUR"]
[SourceTitle "playchess.com"]
[Source "ChessBase"]
[SourceQuality "1"]
[TimeControl "5400+30"]

1. d4 {[%emt 0:00:30]} d5 {[%emt 0:00:30]} 2. c4 {[%emt 0:00:30]} c6 {[%emt 0:00:30]} 3. e3 {[%emt 0:00:00]} Nf6 {[%emt 0:00:30]} 4. Nf3 {[%emt 0:00:00]} Bg4 {[%emt 0:00:30]} 5. Bd3 {[%emt 0:00:30]} e6 {[%emt 0:00:30]} 6. Nc3 {[%emt 0:03:30]} Nbd7 {[%emt 0:01:30]} 7. Qb3 {[%emt 0:05:30]} Qb6 {[%emt 0:00:30]} 8. Qc2 {[%emt 0:00:30]} dxc4 {[%emt 0:07:30]} 9. Bxc4 {[%emt 0:00:30]} Bd6 {[%emt 0:00:30]} 10. h3 {[%emt 0:08:30]} Bh5 {[%emt 0:06:30]} 11. O-O {[%emt 0:02:30]} Bxf3 {[%emt 0:13:30]} 12. gxf3 {[%emt 0:00:30]} e5 {[%emt 0:00:30]} 13. Rd1 {[%emt 0:04:30]} Qc7 {[%emt 0:05:30]} 14. Qf5 {[%emt 0:03:30]} O-O {[%emt 0:06:30]} 15. b3 $17 {[%emt 0:04:30]} (15. Ne4 $11) 15... exd4 {[%emt 0:09:30]} 16. exd4 {[%emt 0:02:30]} b5 {[%emt 0:13:30]} 17. Bd3 {[%emt 0:05:30]} g6 {[%emt 0:03:30]} 18. Qg5 {[%emt 0:00:30]} Rfe8 {[%emt 0:01:30]} 19. Qh4 {[%emt 0:02:30]} Nh5 {[%emt 0:03:30]} 20. Ne2 {[%emt 0:01:30]} Ndf6 {[%emt 0:04:48]} 21. Bg5 {[%emt 0:04:30]} Nd5 {[%emt 0:01:29]} 22. Rac1 {[%emt 0:00:30]} Qd7 {[%emt 0:00:40]} 23. Be4 {[%emt 0:01:30]} Rac8 {[%emt 0:00:58]} 24. Kh1 {[%emt 0:02:30]} Ba3 {[%emt 0:01:55]} 25. Rc2 {[%emt 0:10:30]} f5 {[%emt 0:01:01]} 26. Bxd5+ {[%emt 0:01:30]} Qxd5 {[%emt 0:00:48]} 27. Kg2 {[%emt 0:00:30]} Bd6 {[%emt 0:04:34]} 28. Ng3 {[%emt 0:01:30]} Ng7 {[%emt 0:01:58]} 29. Ne2 {[%emt 0:07:30]} Nh5 {[%emt 0:00:39]} 30. Nc3 {[%emt 0:03:30]} Qf7 {[%emt 0:00:15]} 31. Rcd2 {[%emt 0:00:30]} b4 {[%emt 0:00:40]} 32. Ne2 {[%emt 0:02:30]} Qd5 {[%emt 0:00:41]} 33. Ng3 {[%emt 0:00:30]} Ng7 {[%emt 0:00:42]} 34. Nf1 {[%emt 0:00:00]} f4 {[%emt 0:04:08]} 35. Bxf4 {[%emt 0:12:18]} Bxf4 {[%emt 0:00:35]} 36. Qxf4 {[%emt 0:00:10]} Nh5 {[%emt 0:00:16]} 37. Qg4 {[%emt 0:00:25]} Rf8 {[%emt 0:00:32]} 38. Ne3 {[%emt 0:00:28]} Nf4+ {[%emt 0:00:29]} 39. Kg1 {[%emt 0:01:43]} Qf7 {[%emt 0:01:09]} 40. Nc4 {[%emt 0:00:14]} Rcd8 {[%emt 0:00:46]} 41. Ne5 {[%emt 0:00:21]} Qc7 {[%emt 0:00:42]} 42. Rc1 {[%emt 0:00:33]} Rd6 {[%emt 0:00:29]} 43. Rc4 {[%emt 0:00:50]} a5 {[%emt 0:00:38]} 44. Rdc2 {[%emt 0:00:09]} Qe7 {[%emt 0:01:05]} 45. Kh2 {[%emt 0:01:59]} c5 {[%emt 0:01:31]} 46. dxc5 {[%emt 0:00:42]} Qxe5 {[%emt 0:01:50]} 47. Re4 {[%emt 0:02:59]} Qf6 {[%emt 0:00:45]} 48. cxd6 {[%emt 0:01:06]} Qxd6 {[%emt 0:00:01]} 49. Qg3 {[%emt 0:00:54]} Qd1 {[%emt 0:01:03]} 50. Rc7 {[%emt 0:01:02]} Ne2 {[%emt 0:00:40]} 51. Ree7 {[%emt 0:00:41]} 1-0

[Event "TUR-ch Veterans 2019"]
[Site "Belek"]
[Date "2019.01.24"]
[Round "5.5"]
[White "Ozkoc, Ali"]
[Black "Azizoglu, Ayhan"]
[Result "1-0"]
[ECO "A48"]
[WhiteElo "1773"]
[BlackElo "1861"]
[Annotator "NA"]
[PlyCount "59"]
[EventDate "2019.01.20"]
[EventType "swiss"]
[EventCountry "TUR"]
[SourceTitle "playchess.com"]
[Source "ChessBase"]
[SourceQuality "1"]
[TimeControl "5400+30"]

1. d4 {[%emt 0:00:30]} Nf6 {[%emt 0:00:30]} 2. Bf4 {[%emt 0:00:00]} g6 {[%emt 0:00:30]} 3. e3 {[%emt 0:00:00]} Bg7 {[%emt 0:00:30]} 4. Nd2 {[%emt 0:00:00]} O-O {[%emt 0:00:30]} 5. Ngf3 {[%emt 0:00:00]} d6 {[%emt 0:00:30]} 6. c3 {[%emt 0:01:30]} Nc6 {[%emt 0:01:30]} 7. Be2 {[%emt 0:00:30]} Nd7 {[%emt 0:01:30]} 8. Bg5 {[%emt 0:03:30]} Qe8 {[%emt 0:07:30]} 9. Qc2 {[%emt 0:02:30]} e5 {[%emt 0:02:30]} 10. dxe5 {[%emt 0:08:30]} dxe5 {[%emt 0:01:30]} 11. O-O-O {[%emt 0:01:30]} a5 {[%emt 0:09:30]} 12. h3 {[%emt 0:01:30]} a4 {[%emt 0:05:30]} 13. g4 {[%emt 0:01:30]} Nc5 {[%emt 0:01:30]} 14. Ne4 {[%emt 0:06:30]} Nxe4 {[%emt 0:04:30]} 15. Qxe4 {[%emt 0:00:30]} Be6 {[%emt 0:01:30]} 16. Bc4 {[%emt 0:03:30]} Na5 {[%emt 0:02:30]} 17. Bxe6 {[%emt 0:00:30]} Qxe6 {[%emt 0:00:30]} 18. Qd5 {[%emt 0:00:30]} a3 {[%emt 0:08:30]} 19. b3 {[%emt 0:06:30]} c6 {[%emt 0:04:30]} 20. Qxe6 {[%emt 0:05:30]} fxe6 {[%emt 0:00:30]} 21. Nd2 {[%emt 0:00:00]} Rxf2 {[%emt 0:01:30]} 22. b4 {[%emt 0:01:00]} e4 {[%emt 0:06:30]} 23. bxa5 {[%emt 0:02:30]} Rxa5 {[%emt 0:12:30]} 24. Nxe4 {[%emt 0:06:30]} Rf8 {[%emt 0:04:30]} 25. Be7 {[%emt 0:04:30]} Rfa8 {[%emt 0:03:46]} 26. Bf6 {[%emt 0:06:30]} Bxf6 {[%emt 0:04:16]} 27. Nxf6+ {[%emt 0:01:30]} Kg7 {[%emt 0:00:24]} 28. Rhf1 {[%emt 0:00:00]} Rf8 {[%emt 0:01:08]} 29. Rd7+ {[%emt 0:01:00]} Rf7 {[%emt 0:00:35]} 30. Ne8+ {[%emt 0:00:00]} 1-0

[Event "TUR-ch Veterans 2019"]
[Site "Belek"]
[Date "2019.01.24"]
[Round "5.6"]
[White "Subasi, Zeki"]
[Black "Tofan, Ibrahim"]
[Result "0-1"]
[ECO "B08"]
[WhiteElo "1707"]
[BlackElo "2070"]
[Annotator "NA"]
[PlyCount "120"]
[EventDate "2019.01.20"]
[EventType "swiss"]
[EventCountry "TUR"]
[SourceTitle "playchess.com"]
[Source "ChessBase"]
[SourceQuality "1"]
[TimeControl "5400+30"]

1. e4 {[%emt 0:00:30]} g6 {[%emt 0:00:30]} 2. d4 {[%emt 0:00:00]} Bg7 {[%emt 0:00:30]} 3. Nf3 {[%emt 0:00:00]} d6 {[%emt 0:01:30]} 4. Be2 {[%emt 0:00:30]} Nf6 {[%emt 0:00:30]} 5. Nc3 {[%emt 0:00:30]} a6 {[%emt 0:01:30]} 6. O-O {[%emt 0:00:30]} b5 {[%emt 0:00:30]} 7. a3 {[%emt 0:00:30]} Bb7 {[%emt 0:00:30]} 8. d5 {[%emt 0:09:30]} c6 {[%emt 0:01:30]} 9. Re1 {[%emt 0:01:30]} Nbd7 {[%emt 0:00:30]} 10. Bf1 {[%emt 0:02:30]} O-O {[%emt 0:00:30]} 11. Bf4 {[%emt 0:04:30]} ({White should play} 11. dxc6 $15 Bxc6 12. Bf4) 11... cxd5 {[%emt 0:01:30]} 12. exd5 $17 {[%emt 0:01:30]} Nb6 {[%emt 0:00:30]} 13. Bg5 {[%emt 0:02:30]} h6 {[%emt 0:06:30]} 14. Bxf6 {[%emt 0:00:30]} Bxf6 {[%emt 0:02:30]} 15. Qd2 {[%emt 0:00:30]} Kh7 {[%emt 0:02:30]} 16. Rad1 {[%emt 0:00:30]} Bxc3 {[%emt 0:01:30]} 17. Qxc3 {[%emt 0:01:30]} Bxd5 {[%emt 0:00:30]} 18. Qe3 {[%emt 0:02:30]} Bxf3 {[%emt 0:05:30]} 19. Qxf3 {[%emt 0:00:30]} Rc8 {[%emt 0:00:30]} 20. Bd3 {[%emt 0:05:30]} Nc4 {[%emt 0:00:30]} 21. Bxc4 {[%emt 0:19:30]} Rxc4 {[%emt 0:00:30]} 22. c3 {[%emt 0:03:30]} Qd7 {[%emt 0:01:30]} 23. h3 {[%emt 0:00:30]} Kg7 {[%emt 0:01:30]} 24. Qe3 {[%emt 0:00:30]} Rc7 {[%emt 0:04:30]} 25. Rd2 {[%emt 0:00:30]} Qc6 {[%emt 0:01:30]} 26. Qd4+ {[%emt 0:00:30]} Kh7 {[%emt 0:02:30]} 27. Qh4 {[%emt 0:01:30]} Qb7 {[%emt 0:04:30]} 28. Rde2 {[%emt 0:00:30]} Re8 {[%emt 0:01:30]} 29. Qf4 {[%emt 0:01:30]} Kg7 {[%emt 0:02:30]} 30. Qd4+ {[%emt 0:00:00]} Kg8 {[%emt 0:01:30]} 31. Qf4 {[%emt 0:00:00]} Kg7 {[%emt 0:05:30]} 32. Qd4+ {[%emt 0:00:30]} Kh7 {[%emt 0:00:30]} 33. Qf4 {[%emt 0:00:30]} e5 {[%emt 0:00:30]} 34. Qb4 {[%emt 0:01:30]} Qb6 {[%emt 0:00:30]} 35. Rd1 {[%emt 0:00:30]} Re6 {[%emt 0:00:30]} 36. Qe4 {[%emt 0:03:30]} Qc6 {[%emt 0:01:30]} 37. Qe3 {[%emt 0:02:30]} Kg7 {[%emt 0:00:30]} 38. Red2 {[%emt 0:00:30]} Qc5 {[%emt 0:05:30]} 39. Qe4 {[%emt 0:00:30]} Rc6 {[%emt 0:00:30]} 40. Rd5 {[%emt 0:01:30]} Qc4 {[%emt 0:00:30]} 41. Qe3 {[%emt 0:00:30]} h5 {[%emt 0:05:30]} 42. Qd2 {[%emt 0:00:30]} Qe4 {[%emt 0:00:30]} 43. f3 {[%emt 0:01:30]} Qc4 {[%emt 0:00:30]} 44. Qe3 {[%emt 0:02:30]} Qb3 {[%emt 0:01:30]} 45. R1d2 {[%emt 0:00:30]} Qa2 {[%emt 0:00:30]} 46. Qa7 {[%emt 0:01:30]} Qc4 {[%emt 0:02:30]} 47. Qe3 {[%emt 0:00:30]} Rf6 {[%emt 0:00:30]} 48. Qe1 {[%emt 0:01:30]} Qf4 {[%emt 0:01:30]} 49. Kh1 {[%emt 0:01:30]} Re6 {[%emt 0:04:30]} 50. Qd1 {[%emt 0:03:30]} Qf6 {[%emt 0:00:30]} 51. Qc2 {[%emt 0:01:30]} Rc4 {[%emt 0:01:30]} 52. Qd3 {[%emt 0:00:00]} e4 {[%emt 0:00:30]} 53. fxe4 {[%emt 0:00:00]} Rcxe4 {[%emt 0:02:30]} 54. Qg3 {[%emt 0:01:30]} Re1+ {[%emt 0:01:30]} 55. Kh2 {[%emt 0:00:30]} Qf1 {[%emt 0:00:00]} 56. Qf2 {[%emt 0:01:30]} Qh1+ {[%emt 0:00:00]} 57. Kg3 {[%emt 0:00:30]} R1e3+ {[%emt 0:01:30]} 58. Kf4 {[%emt 0:03:30]} Qh2+ {[%emt 0:02:30]} 59. g3 {[%emt 0:02:06]} R6e4+ {[%emt 0:00:30]} 60. Kg5 {[%emt 0:00:41]} Qxg3+ {[%emt 0:00:00]} 0-1

[Event "TUR-ch Veterans 2019"]
[Site "Belek"]
[Date "2019.01.24"]
[Round "5.7"]
[White "Bozkir, Dursun Murat"]
[Black "Karadag, Eflatun Cem"]
[Result "1-0"]
[ECO "C69"]
[WhiteElo "1684"]
[BlackElo "1927"]
[Annotator "NA"]
[PlyCount "87"]
[EventDate "2019.01.20"]
[EventType "swiss"]
[EventCountry "TUR"]
[SourceTitle "playchess.com"]
[Source "ChessBase"]
[SourceQuality "1"]
[TimeControl "5400+30"]

1. e4 {[%emt 0:00:30]} e5 {[%emt 0:00:30]} 2. Nf3 {[%emt 0:00:30]} Nc6 {[%emt 0:00:00]} 3. Bb5 {[%emt 0:00:00]} a6 {[%emt 0:00:00]} 4. Bxc6 {[%emt 0:00:00]} dxc6 {[%emt 0:00:00]} 5. O-O {[%emt 0:00:00]} f6 {[%emt 0:00:00]} 6. d4 {[%emt 0:01:00]} exd4 {[%emt 0:00:30]} 7. Nxd4 {[%emt 0:00:30]} c5 {[%emt 0:00:30]} 8. Nb3 {[%emt 0:00:30]} Qxd1 {[%emt 0:01:30]} 9. Rxd1 {[%emt 0:00:30]} Bd7 {[%emt 0:01:30]} 10. Bf4 {[%emt 0:02:30]} O-O-O {[%emt 0:01:30]} 11. Nc3 {[%emt 0:01:30]} Bg4 {[%emt 0:12:30] C69: Ruy Lopez: Exchange Variation with 5 0-0 f6} (11... Be6 $11 {keeps the balance.} 12. Rxd8+ Kxd8 13. Rd1+ Kc8 14. Nd5 Bxd5 15. Rxd5 b6 16. Rd1 Ne7 17. Kf1 h5 18. Ke2 g5 19. Be3 Nc6 20. Nd2 h4 21. h3 Bd6 22. Nc4 Kd7 23. e5 fxe5 24. Bxg5 {½-½ (34) Polsterer,H (2449)-Pepene,G (2484) ICCF email 2016}) 12. Rxd8+ {[%emt 0:04:30]} Kxd8 {[%emt 0:01:30]} 13. f3 {[%emt 0:02:30]} Be6 {[%emt 0:00:30]} 14. Rd1+ {[%emt 0:01:30]} Kc8 {[%emt 0:01:30]} 15. Nd5 {[%emt 0:03:30]} Bxd5 {[%emt 0:04:30]} 16. Rxd5 {[%emt 0:00:30]} b6 {[%emt 0:00:30]} 17. Kf2 {[%emt 0:06:30]} Ne7 {[%emt 0:01:30]} 18. Rd1 {[%emt 0:00:30]} Ng6 {[%emt 0:01:30]} 19. Bg3 {[%emt 0:01:30]} c4 {[%emt 0:02:30]} 20. Nd4 $146 {[%emt 0:01:30]} ({Predecessor:} 20. Nd2) 20... Bc5 {[%emt 0:05:30]} 21. Ke2 {[%emt 0:02:30]} Bxd4 {[%emt 0:10:30]} 22. Rxd4 $14 {[%emt 0:00:30]} b5 {[%emt 0:00:30]} 23. Rd5 {[%emt 0:09:30]} Ne7 {[%emt 0:03:30]} 24. Rc5 {[%emt 0:02:30]} c6 {[%emt 0:17:30]} 25. Bd6 {[%emt 0:00:30]} Re8 {[%emt 0:02:30]} 26. Bxe7 {[%emt 0:00:30]} Rxe7 {[%emt 0:00:30]} 27. Rxc6+ {[%emt 0:00:00]} Kb7 {[%emt 0:00:00]} 28. Rd6 {[%emt 0:02:00]} f5 {[%emt 0:06:00]} 29. Ke3 {[%emt 0:00:00]} fxe4 {[%emt 0:00:30]} 30. fxe4 {[%emt 0:00:00]} a5 {[%emt 0:00:30]} 31. b3 {[%emt 0:22:30]} c3 {[%emt 0:03:30]} 32. a3 {[%emt 0:00:30]} Rf7 {[%emt 0:02:59]} 33. b4 {[%emt 0:02:30]} Rf1 {[%emt 0:06:00]} 34. Rd7+ {[%emt 0:01:30]} Kc6 {[%emt 0:02:10]} 35. Rxg7 {[%emt 0:00:00]} a4 {[%emt 0:00:42]} 36. Rxh7 {[%emt 0:13:00]} Ra1 {[%emt 0:00:48]} 37. Kd4 {[%emt 0:00:30]} Rxa3 {[%emt 0:00:02]} 38. g4 {[%emt 0:01:07]} Rb3 {[%emt 0:01:04]} 39. cxb3 {[%emt 0:04:12]} c2 {[%emt 0:00:04]} 40. Rh3 {[%emt 0:01:06]} c1=Q {[%emt 0:00:30]} 41. Rc3+ {[%emt 0:00:09]} Qxc3+ {[%emt 0:00:17]} 42. Kxc3 {[%emt 0:00:30]} a3 {[%emt 0:00:00]} 43. h4 {[%emt 0:00:36]} Kd6 {[%emt 0:00:00]} 44. h5 {[%emt 0:00:00]} 1-0

[Event "TUR-ch Veterans 2019"]
[Site "Belek"]
[Date "2019.01.24"]
[Round "5.8"]
[White "Onem, Cem"]
[Black "Cinar Corlulu, Nilufer"]
[Result "1-0"]
[ECO "A65"]
[WhiteElo "1840"]
[BlackElo "1970"]
[Annotator "NA"]
[PlyCount "107"]
[EventDate "2019.01.20"]
[EventType "swiss"]
[EventCountry "TUR"]
[SourceTitle "playchess.com"]
[Source "ChessBase"]
[SourceQuality "1"]
[TimeControl "5400+30"]

1. d4 {[%emt 0:00:30]} Nf6 {[%emt 0:01:30]} 2. c4 {[%emt 0:00:00]} g6 {[%emt 0:00:30]} 3. Nc3 {[%emt 0:00:00]} Bg7 {[%emt 0:00:30]} 4. e4 {[%emt 0:00:30]} d6 {[%emt 0:00:30]} 5. f3 {[%emt 0:00:00]} O-O {[%emt 0:00:00]} 6. Bg5 {[%emt 0:01:00]} c5 {[%emt 0:00:00]} 7. d5 {[%emt 0:01:30]} e6 {[%emt 0:01:30]} 8. Qd2 {[%emt 0:04:30]} exd5 {[%emt 0:01:30]} 9. cxd5 {[%emt 0:06:30]} a6 {[%emt 0:02:30]} 10. a4 {[%emt 0:00:30]} Re8 {[%emt 0:01:30]} 11. Nge2 {[%emt 0:05:30]} Qa5 {[%emt 0:10:30]} 12. Ng3 {[%emt 0:04:30]} Nbd7 {[%emt 0:02:30]} 13. Be2 {[%emt 0:01:30]} b5 {[%emt 0:05:30]} 14. O-O {[%emt 0:03:30]} b4 {[%emt 0:02:30]} 15. Nd1 {[%emt 0:00:30]} Rb8 {[%emt 0:08:30]} 16. Ne3 {[%emt 0:00:30]} Qc7 {[%emt 0:00:30]} 17. Nc4 $14 {[%emt 0:09:30]} Nb6 {[%emt 0:03:30]} 18. Qf4 {[%emt 0:01:30]} Nxc4 {[%emt 0:02:30]} 19. Bxf6 {[%emt 0:01:30]} Ne5 {[%emt 0:06:30]} 20. Bxg7 {[%emt 0:01:30]} Kxg7 {[%emt 0:00:30]} 21. Qg5 {[%emt 0:01:30]} f6 {[%emt 0:07:30]} 22. Nh5+ {[%emt 0:00:30]} Kh8 {[%emt 0:05:30]} 23. Qxf6+ {[%emt 0:02:30]} Kg8 {[%emt 0:00:30]} 24. f4 {[%emt 0:06:30]} Rf8 {[%emt 0:04:30]} 25. Qh4 {[%emt 0:00:30]} Nd7 {[%emt 0:01:30]} 26. Ng3 {[%emt 0:06:30]} Qd8 {[%emt 0:02:30]} 27. Qxd8 {[%emt 0:02:30]} Rxd8 {[%emt 0:00:30]} 28. b3 {[%emt 0:00:30]} a5 {[%emt 0:00:30]} 29. Bb5 {[%emt 0:03:30]} Nb6 {[%emt 0:02:30]} 30. Rac1 {[%emt 0:09:30]} Bd7 {[%emt 0:05:30]} 31. Ba6 {[%emt 0:00:30]} Ra8 {[%emt 0:00:30]} 32. Bc4 {[%emt 0:00:30]} Re8 {[%emt 0:02:36]} 33. Rf3 {[%emt 0:04:30]} Rac8 {[%emt 0:01:55]} 34. Re3 {[%emt 0:01:30]} g5 {[%emt 0:07:15]} 35. fxg5 {[%emt 0:02:15]} Re5 {[%emt 0:00:16]} 36. h4 {[%emt 0:00:11]} Rf8 {[%emt 0:00:32]} 37. Rf3 {[%emt 0:03:26]} Kg7 {[%emt 0:03:10]} 38. Nh5+ {[%emt 0:04:58]} Kg8 {[%emt 0:00:10]} 39. Nf6+ {[%emt 0:00:00]} Kg7 {[%emt 0:00:09]} 40. Rcf1 {[%emt 0:01:59]} Rd8 {[%emt 0:01:35]} 41. Nh5+ {[%emt 0:04:43]} Kg8 {[%emt 0:00:26]} 42. g4 {[%emt 0:02:15]} Re7 {[%emt 0:02:26]} 43. Bd3 {[%emt 0:02:19]} Bc8 {[%emt 0:01:32]} 44. Nf6+ {[%emt 0:00:37]} Kg7 {[%emt 0:00:21]} 45. h5 {[%emt 0:00:43]} Re5 {[%emt 0:00:54]} 46. g6 {[%emt 0:01:34]} h6 {[%emt 0:00:17]} 47. Kh2 {[%emt 0:00:32]} Rg5 {[%emt 0:00:13]} 48. Kg3 {[%emt 0:00:21]} Rf8 {[%emt 0:01:03]} 49. Kh2 {[%emt 0:01:16]} Rd8 {[%emt 0:00:17]} 50. Kh3 {[%emt 0:00:20]} Nd7 {[%emt 0:00:31]} 51. Rf4 {[%emt 0:00:56]} Ne5 {[%emt 0:00:30]} 52. Bb5 {[%emt 0:00:25]} Kh8 {[%emt 0:00:41]} 53. Ne8 {[%emt 0:00:32]} Rxh5+ {[%emt 0:03:09]} 54. Kg3 {[%emt 0:00:13]} 1-0